[Event "FTX Crypto Cup MCCT 2022"]
[Site "Miami"]
[Date "2022.08.11"]
[Round "4.1"]
[White "Giri, Anish"]
[Black "Niemann, Hans Moke"]
[Result "1-0"]
[ECO "A29"]
[WhiteElo "2760"]
[BlackElo "2688"]
[Annotator "TA"]
[PlyCount "117"]
[EventDate "2022.08.10"]
[EventType "tourn"]
[EventCountry "USA"]
[SourceTitle "playchess.com"]
[Source "ChessBase"]
[SourceQuality "1"]
[TimeControl "900+10"]

{[%evp 11,117,11,16,13,25,31,37,29,52,41,39,35,52,7,34,25,17,33,80,67,79,67,105,67,75,78,65,60,115,94,95,96,126,118,147,133,212,214,216,216,214,214,292,241,314,313,300,296,272,161,161,163,187,170,164,147,246,244,250,252,231,246,286,287,269,274,298,281,253,266,419,278,391,380,451,472,581,588,739,640,992,966,924,1002,935,723,723,613,1095,813,813,779,12830,12831,12835,12835,12841,12835,12835,12835,12835,12836,12841,12835,12835,12835,12850,27999]} 1. c4 {[%emt 0:00:00]} e5 {[%emt 0:00:00]} 2. Nc3 {[%emt 0:00:02]} Nf6 {[%emt 0:00:04]} 3. Nf3 {[%emt 0:00:09]} Nc6 {[%emt 0:00:03]} 4. g3 {[%emt 0:00:01]} Nd4 {[%emt 0:01:22]} 5. Bg2 {[%emt 0:00:02]} Nxf3+ {[%emt 0:00:02]} 6. Bxf3 {[%emt 0:00:00]} Bc5 {[%emt 0:00:00]} 7. O-O {[%emt 0:00:55] A29: English Opening: Four Knights Variation with 4 g3.} O-O {[%emt 0:00:14]} 8. Na4 {[%emt 0:00:06]} d6 {[%emt 0:01:04]} 9. d3 {[%emt 0:00:32] White is slightly better.} a5 {[%emt 0:03:36]} 10. Nxc5 {[%emt 0:00:25]} dxc5 {[%emt 0:00:03] [#]} 11. Bg2 $146 {[%emt 0:00:11]} ({Predecessor:} 11. Bd2 Ra7 12. Bg2 Re8 13. Bc3 Qe7 14. e4 Nd7 15. f4 Ra6 16. Bh3 Rh6 17. Bxd7 Qxd7 {½-½ (48) Tkachiev,V (2661)-Laznicka,V (2610) Heraklion 2007}) 11... Qe7 {[%emt 0:00:59]} 12. Qc2 {[%emt 0:00:56]} Re8 {[%emt 0:00:22]} 13. b3 {[%emt 0:00:07]} Rb8 {[%emt 0:00:41]} 14. Bb2 {[%emt 0:00:43]} h5 {[%emt 0:01:09]} (14... b6 $14 {might be stronger.}) 15. Qd2 $16 {[%emt 0:05:09]} b6 {[%emt 0:02:01]} 16. Qg5 {[%emt 0:00:02]} Ng4 {[%emt 0:03:10]} 17. h4 {[%emt 0:03:36]} Qxg5 {[%emt 0:00:22]} 18. hxg5 {[%emt 0:00:01]} f6 {[%emt 0:00:07]} 19. Bc6 {[%emt 0:01:10]} Rd8 {[%emt 0:00:29] White leaves nothing to chance now.} ({Black should play} 19... Re7 $14) 20. gxf6 {[%emt 0:00:33]} gxf6 {[%emt 0:00:05]} 21. Kg2 {[%emt 0:00:26]} Kg7 {[%emt 0:00:35]} 22. Rh1 {[%emt 0:00:01]} Kg6 {[%emt 0:00:30] [#]} 23. Rh4 $1 {[%emt 0:00:02]} Rh8 {[%emt 0:00:48]} (23... Bd7 $16) 24. Rah1 $18 {[%emt 0:00:06]} Be6 {[%emt 0:00:09]} 25. f3 {[%emt 0:01:20]} Ne3+ {[%emt 0:00:11][%cal Bg4e3,Be3c2,Bc2d4][%mdl 32]} 26. Kf2 {[%emt 0:00:00]} Nc2 {[%emt 0:00:14]} 27. g4 {[%emt 0:00:03] Black must now prevent Be4+.} Nd4 {[%emt 0:00:59]} 28. Be4+ {[%emt 0:01:18] A strong pair of Bishops.} (28. gxh5+ Kh7 $16) (28. Rxh5 Rxh5 29. gxh5+ Kh7 $16) 28... f5 {[%emt 0:00:02]} 29. gxf5+ {[%emt 0:00:11]} (29. gxh5+ $6 Kf6 $16) (29. Rxh5 Rxh5 30. gxh5+ Kh6 $14) 29... Bxf5 {[%emt 0:00:03]} 30. Bxf5+ {[%emt 0:00:56]} (30. Bd5 $142) 30... Kxf5 {[%emt 0:00:00]} 31. e3 {[%emt 0:00:46]} Nc6 {[%emt 0:00:06]} 32. f4 {[%emt 0:00:03]} (32. Rxh5+ Rxh5 33. Rxh5+ Kg6 $16) 32... Ke6 {[%emt 0:00:16]} 33. fxe5 {[%emt 0:00:12] [#] And now d4 would win.} Rbf8+ {[%emt 0:00:08]} (33... Nb4 $16 {might work better.}) 34. Ke2 {[%emt 0:00:01] Strongly threatening d4.} Rfg8 {[%emt 0:00:16] Threatens to win with ...Rg2+.} 35. R1h2 {[%emt 0:00:05] Inhibits Rg2+.} (35. Rxh5 Rxh5 36. Rxh5 Rg2+ 37. Kf3 Rxb2 $17) 35... Ne7 {[%emt 0:00:11]} 36. d4 {[%emt 0:00:01]} ({Avoid the trap} 36. Rxh5 $2 Rxh5 37. Rxh5 Rg2+ 38. Kf3 Rxb2 $19) 36... cxd4 {[%emt 0:00:16]} 37. exd4 {[%emt 0:00:00]} c6 {[%emt 0:00:18]} 38. Rf4 {[%emt 0:00:03]} ({And not} 38. Rxh5 Rxh5 39. Rxh5 (39. d5+ $2 cxd5 40. Rxh5 Rg2+ 41. Kd3 Rxb2 $19) 39... Rg2+ 40. Kd3 Rxb2 $15) 38... Rg6 {[%emt 0:00:02]} 39. Kd3 {[%emt 0:00:52]} Rg3+ {[%emt 0:00:31]} 40. Ke4 {[%emt 0:00:02]} Rg6 {[%emt 0:00:01]} (40... Nd5 $142 41. Rf3 Rg4+ 42. Kd3 Nf4+ 43. Ke3 Ng2+ 44. Kf2 Nf4) 41. Rfh4 {[%emt 0:00:18]} Rg5 {[%emt 0:00:11]} (41... Rhg8 {keeps fighting.} 42. Rxh5 Rg4+ 43. Kf3 Rg3+ 44. Kf2 R8g4 45. Rh6+ Ng6) 42. Bc1 {[%emt 0:00:05]} Rf5 {[%emt 0:00:08]} 43. Bf4 {[%emt 0:00:08] White is clearly winning.} Rhf8 {[%emt 0:00:18]} 44. Rg2 {[%emt 0:00:04]} R5f7 {[%emt 0:00:03]} 45. Rg5 {[%emt 0:00:08]} Kd7 {[%emt 0:00:06]} 46. d5 {[%emt 0:00:20] e6+ is the strong threat. Active counter play!} cxd5+ {[%emt 0:00:04]} 47. cxd5 {[%emt 0:00:01]} Nxd5 {[%emt 0:00:03]} 48. e6+ {[%emt 0:00:09]} Kxe6 {[%emt 0:00:05]} 49. Re5+ {[%emt 0:00:00]} Kf6 {[%emt 0:00:00]} 50. Rxd5 {[%emt 0:00:03]} Re7+ {[%emt 0:00:02]} 51. Kf3 {[%emt 0:00:05]} Rc8 {[%emt 0:00:12]} 52. Rhxh5 {[%emt 0:00:16]} Rc3+ {[%emt 0:00:01]} 53. Kg4 {[%emt 0:00:01]} Rg7+ {[%emt 0:00:01]} 54. Rhg5 {[%emt 0:00:06]} Rxg5+ {[%emt 0:00:01]} 55. Bxg5+ {[%emt 0:00:08]} Ke6 {[%emt 0:00:01]} 56. Rb5 {[%emt 0:00:01]} a4 {[%emt 0:00:04]} 57. Rxb6+ {[%emt 0:00:06]} Kd5 {[%emt 0:00:02]} 58. Rb4 {[%emt 0:00:11]} axb3 {[%emt 0:00:14]} 59. axb3 {[%emt 0:00:00] Weighted Error Value: White=0.14 (very precise) /Black=0.35} 1-0

[Event "FTX Crypto Cup MCCT 2022"]
[Site "Miami"]
[Date "2022.08.11"]
[Round "4.1"]
[White "Praggnanandhaa R"]
[Black "Aronian, Levon"]
[Result "1/2-1/2"]
[ECO "B14"]
[WhiteElo "2648"]
[BlackElo "2775"]
[Annotator "TA"]
[PlyCount "73"]
[EventDate "2022.08.10"]
[EventType "tourn"]
[EventCountry "USA"]
[SourceTitle "playchess.com"]
[Source "ChessBase"]
[SourceQuality "1"]
[TimeControl "900+10"]

{[%evp 23,73,9,16,16,18,23,15,13,15,26,25,10,44,62,68,65,69,88,93,0,0,0,0,0,0,0,0,0,0,-6,0,0,0,-1,-2,-36,-30,-28,-30,-31,0,-3,0,0,0,0,0,0,0,-8,0,0]} 1. d4 {[%emt 0:00:00]} Nf6 {[%emt 0:00:00]} 2. c4 {[%emt 0:00:05]} e6 {[%emt 0:00:02]} 3. Nc3 {[%emt 0:00:01]} Bb4 {[%emt 0:00:02]} 4. e3 {[%emt 0:00:01]} O-O {[%emt 0:00:04]} 5. Bd3 {[%emt 0:00:01]} c5 {[%emt 0:00:03]} 6. Nf3 {[%emt 0:00:03]} d5 {[%emt 0:00:14]} 7. cxd5 {[%emt 0:00:03]} cxd4 {[%emt 0:00:13]} 8. exd4 {[%emt 0:00:07]} exd5 {[%emt 0:00:01]} 9. O-O {[%emt 0:00:05]} Bg4 {[%emt 0:00:02]} 10. Bg5 {[%emt 0:00:48]} Bxc3 {[%emt 0:00:03]} 11. bxc3 {[%emt 0:00:02]} Nbd7 {[%emt 0:00:01]} 12. h3 {[%emt 0:01:00]} Bh5 {[%emt 0:00:03]} 13. c4 {[%emt 0:01:26] B14: Caro-Kann: Panov-Botvinnik Attack with 5...e6 and 5...g6.} dxc4 {[%emt 0:00:39]} 14. Bxc4 {[%emt 0:00:03]} Rc8 {[%emt 0:01:35]} 15. Bb3 {[%emt 0:01:17] [#]} h6 $146 {[%emt 0:00:49]} ({Predecessor:} 15... Qa5 16. Qd2 Qxd2 17. Nxd2 h6 18. Bf4 Nb6 19. Rac1 Nbd5 20. Be5 Nc3 21. Kh2 Nfd5 {½-½ (44) Nun,J (2460)-Plachetka,J (2430) Namestovo 1987}) 16. Bh4 {[%emt 0:01:34]} Qa5 {[%emt 0:02:08]} 17. Qe1 {[%emt 0:02:01]} Qa6 {[%emt 0:02:17]} 18. Qe3 {[%emt 0:01:32]} Bg6 {[%emt 0:02:08][%cal Bh5g6,Bg6d3,Bd3c4][%mdl 32]} 19. Rac1 {[%emt 0:00:58]} Bd3 {[%emt 0:01:48]} 20. Rxc8 {[%emt 0:02:11]} Rxc8 {[%emt 0:00:00] [#]} 21. Re1 {[%emt 0:00:02]} (21. Bxf6 $1 $16 Nxf6 22. Rc1) 21... Bc4 $11 {[%emt 0:00:13]} 22. Rc1 {[%emt 0:01:44]} b5 {[%emt 0:00:09]} 23. Bxf6 {[%emt 0:01:01]} Nxf6 {[%emt 0:00:16]} 24. Ne5 {[%emt 0:00:04]} Bxb3 {[%emt 0:00:02]} 25. axb3 {[%emt 0:00:09]} Nd5 {[%emt 0:00:42]} 26. Qd2 {[%emt 0:00:14]} Rxc1+ {[%emt 0:00:17]} 27. Qxc1 {[%emt 0:00:00][%mdl 4096] Endgame KQN-KQN} Qe6 {[%emt 0:00:02]} 28. Qc5 {[%emt 0:00:26]} a6 {[%emt 0:00:02]} 29. Qc2 {[%emt 0:00:33]} g6 {[%emt 0:00:13]} (29... Nf4 {is more complex.} 30. Kh2 h5 31. Qe4 Nd5) 30. Qd2 {[%emt 0:00:10]} Kg7 {[%emt 0:00:08]} 31. Nd3 {[%emt 0:00:21]} Qe4 {[%emt 0:00:53]} 32. Nc5 {[%emt 0:00:10][%csl LRa6,LRe4] The position is equal.} Qf4 {[%emt 0:00:01]} 33. Qd3 {[%emt 0:00:45]} Qc1+ {[%emt 0:01:10]} 34. Kh2 $1 {[%emt 0:00:04]} Qf4+ {[%emt 0:00:09]} 35. Kg1 {[%emt 0:00:01]} Qc1+ {[%emt 0:00:37]} 36. Kh2 $1 {[%emt 0:00:03]} Qf4+ {[%emt 0:00:04]} 37. Kg1 {[%emt 0:00:00] Weighted Error Value: White=0.07 (flawless) /Black=0.04 (flawless)} 1/2-1/2

[Event "FTX Crypto Cup MCCT 2022"]
[Site "Miami"]
[Date "2022.08.11"]
[Round "4.2"]
[White "Aronian, Levon"]
[Black "Praggnanandhaa R"]
[Result "1/2-1/2"]
[ECO "A22"]
[WhiteElo "2775"]
[BlackElo "2648"]
[Annotator "TA"]
[PlyCount "84"]
[EventDate "2022.08.10"]
[EventType "tourn"]
[EventCountry "USA"]
[SourceTitle "playchess.com"]
[Source "ChessBase"]
[SourceQuality "1"]
[TimeControl "900+10"]

{[%evp 9,84,64,70,69,77,56,69,57,61,73,67,64,62,65,64,69,76,51,88,72,72,31,50,18,83,88,97,75,332,77,75,79,80,91,88,13,11,16,19,16,50,47,50,48,49,44,44,43,47,39,44,43,40,44,46,42,45,52,47,47,54,33,34,34,34,30,41,27,30,12,35,36,37,37,37,20,40]} 1. c4 {[%emt 0:00:00]} e5 {[%emt 0:00:00]} 2. Nc3 {[%emt 0:00:02]} Nf6 {[%emt 0:00:02]} 3. Nf3 {[%emt 0:00:02]} e4 {[%emt 0:00:02]} 4. Ng5 {[%emt 0:00:03]} c6 {[%emt 0:00:02]} 5. Ngxe4 {[%emt 0:00:07]} Nxe4 {[%emt 0:00:01]} 6. Nxe4 {[%emt 0:00:00] A22: English Opening: 1...e5 2 Nc3 Nf6.} d5 {[%emt 0:00:01]} 7. cxd5 {[%emt 0:00:06]} cxd5 {[%emt 0:00:02]} 8. Ng3 {[%emt 0:00:03][%cal Be4g3,Bg3e2,Be2c3][%mdl 32] White is slightly better.} (8. Qa4+ $2 Bd7 9. Qd4 dxe4 10. Qxe4+ Be7 $19) 8... h5 {[%emt 0:00:01] [#] And now ...h4 would win.} 9. e3 {[%emt 0:00:01]} h4 {[%emt 0:00:02]} 10. Ne2 {[%emt 0:00:01]} Nc6 {[%emt 0:00:03]} 11. d4 {[%emt 0:00:11]} Qf6 {[%emt 0:00:04]} 12. Nc3 {[%emt 0:00:39]} Qg6 {[%emt 0:00:09]} 13. a3 {[%emt 0:00:38]} Bd6 {[%emt 0:01:53] [#]} 14. Bd2 $146 {[%emt 0:01:01]} (14. Nxd5 h3 15. g3 Qe4 16. Nf6+ gxf6 $17) ({Predecessor:} 14. h3 O-O 15. Qf3 Na5 16. Qxd5 b6 17. Bd2 Bb7 18. Qa2 Rac8 19. b4 Nc6 20. Qb1 {1-0 (48) Stremavicius,T (2532)-Goh,W (2453) Chennai 2022}) 14... Bf5 {[%emt 0:00:40]} 15. Rc1 {[%emt 0:00:03]} (15. Nxd5 h3 16. g4 Be4 $19) 15... O-O {[%emt 0:01:22]} 16. Qf3 {[%emt 0:00:54]} (16. Nxd5 h3 17. Qf3 (17. gxh3 $2 Be4 $19) 17... Bg4 $17) 16... Bg4 {[%emt 0:05:00]} (16... Rfe8 $11) 17. Qxd5 $16 {[%emt 0:00:03]} Rad8 {[%emt 0:00:58]} 18. h3 {[%emt 0:00:40]} Bg3 $2 {[%emt 0:02:39][%mdl 8192]} 19. Qe4 $2 {[%emt 0:02:25]} ({Not} 19. fxg3 $2 Rxd5 20. hxg4 (20. Nxd5 $2 {perishes.} Be6 $19) 20... Rdd8 21. Rxh4 Rfe8 $19) (19. Qc4 $18 {is more deadly.} Ne5 20. dxe5 Bxf2+ 21. Kxf2 Rxd2+ 22. Ke1) 19... Bf5 {[%emt 0:00:57]} 20. Qf3 {[%emt 0:01:08]} Rfe8 {[%emt 0:01:01] Hoping for ...Nxd4.} 21. Be2 {[%emt 0:02:19]} Bb8 {[%emt 0:01:11] [#]} 22. Qh5 {[%emt 0:00:02]} (22. Rd1 $1 $16) 22... Qxh5 $11 {[%emt 0:00:27]} 23. Bxh5 {[%emt 0:00:00] Be2 is the strong threat.} Nxd4 {[%emt 0:00:01] aiming for ...Nb3.} 24. Bd1 {[%emt 0:00:00] Inhibits Nb3.} Bd3 {[%emt 0:00:14]} 25. Ne2 {[%emt 0:00:02]} Bxe2 {[%emt 0:00:29]} 26. Bxe2 {[%emt 0:00:00]} Nb3 {[%emt 0:00:01][%csl LRc1,LRd2]} 27. Rc2 {[%emt 0:00:01]} Nxd2 {[%emt 0:01:02]} 28. Rxd2 {[%emt 0:00:00]} Be5 {[%emt 0:00:00]} 29. a4 {[%emt 0:00:25]} b6 {[%emt 0:00:29]} 30. Bb5 {[%emt 0:00:06]} Rxd2 {[%emt 0:00:28]} 31. Kxd2 $14 {[%emt 0:00:00][%mdl 4096] Endgame KRB-KRB} Rd8+ {[%emt 0:00:01]} 32. Kc2 {[%emt 0:00:02]} Rc8+ {[%emt 0:00:03]} 33. Kb3 {[%emt 0:00:27]} Rd8 {[%emt 0:00:03]} 34. f4 {[%emt 0:00:01]} Bf6 {[%emt 0:00:07]} 35. e4 {[%emt 0:00:01][%cal Be3e4,Be4e5][%mdl 32]} Rd2 {[%emt 0:00:20][%csl LRb2,LRg2]} 36. e5 {[%emt 0:00:02]} Be7 {[%emt 0:00:03]} 37. Bc6 {[%emt 0:00:02]} Bc5 {[%emt 0:00:30]} 38. Rc1 {[%emt 0:00:02]} g6 {[%emt 0:00:24]} 39. Bf3 {[%emt 0:00:30]} Rd4 {[%emt 0:00:14]} 40. Rc4 {[%emt 0:00:03] Inhibits Rb4+.} Rxc4 {[%emt 0:00:10]} 41. Kxc4 {[%emt 0:00:00]} Be3 {[%emt 0:00:08]} 42. Kb5 {[%emt 0:00:28]} a5 {[%emt 0:00:11] Weighted Error Value: White=0.25 (precise) /Black=0.16 (very precise)} 1/2-1/2

[Event "FTX Crypto Cup MCCT 2022"]
[Site "Miami"]
[Date "2022.08.11"]
[Round "4.2"]
[White "Duda, Jan-Krzysztof"]
[Black "Firouzja, Alireza"]
[Result "1-0"]
[ECO "D41"]
[WhiteElo "2750"]
[BlackElo "2793"]
[Annotator "TA"]
[PlyCount "175"]
[EventDate "2022.08.10"]
[EventType "tourn"]
[EventCountry "USA"]
[SourceTitle "playchess.com"]
[Source "ChessBase"]
[SourceQuality "1"]
[TimeControl "900+10"]

{[%evp 13,175,20,14,0,0,-2,0,0,5,4,2,2,6,12,12,6,25,21,20,2,5,6,3,3,5,5,8,8,6,10,17,0,18,-14,0,0,7,5,4,2,6,3,8,0,0,0,0,0,0,0,0,0,0,0,0,0,0,0,0,0,0,0,0,0,3,7,7,7,8,0,8,8,8,8,8,3,3,2,3,3,3,3,31,0,62,0,62,62,62,62,62,0,80,27,142,142,209,142,143,143,143,143,1241,876,11375,10193,8909,5622,29947,29938,12844,12824,12795,9529,4187,173,173,173,173,173,173,173,173,173,173,173,29971,29973,29963,76,0,90,29966,29967,29968,29969,29971,29972,29974,29970,29974,29973,29973,29971,29970,0,29968,29969,29969,29970,29974,29974,29973,29975,29975,8,29976,29977,29977,29978,29980,29981,29981,29982]} 1. d4 {[%emt 0:00:00]} Nf6 {[%emt 0:00:00]} 2. c4 {[%emt 0:00:02]} e6 {[%emt 0:00:01]} 3. Nf3 {[%emt 0:00:03]} d5 {[%emt 0:00:02]} 4. Nc3 {[%emt 0:00:00]} c5 {[%emt 0:00:15]} 5. cxd5 {[%emt 0:00:02]} cxd4 {[%emt 0:00:01]} 6. Qa4+ {[%emt 0:00:01]} Bd7 {[%emt 0:00:19]} 7. Qxd4 {[%emt 0:00:01]} exd5 {[%emt 0:00:07]} 8. e3 {[%emt 0:00:01] D41: Queen's Gambit Declined: Semi-Tarrasch with 5 cxd5.} Nc6 {[%emt 0:00:07]} 9. Qd3 {[%emt 0:00:00]} Be6 {[%emt 0:02:07]} 10. Be2 {[%emt 0:00:03] The position is equal.} Bd6 {[%emt 0:00:01]} 11. O-O {[%emt 0:00:02]} O-O {[%emt 0:00:02] [#]} 12. b3 $146 {[%emt 0:00:43]} ({Predecessor:} 12. Rd1 Qe7 13. b3 Rac8 14. Bb2 Rfd8 15. Rac1 a6 16. g3 Ba3 17. Qb1 Rc7 18. Na4 Ne4 19. Bxa3 Qxa3 20. Rxc6 Rxc6 21. Qxe4 {1-0 (33) Chen,J (2316)-Ansh,M (2189) New York 2022}) 12... Ne5 {[%emt 0:00:24]} 13. Nxe5 {[%emt 0:00:01]} Bxe5 {[%emt 0:00:00]} 14. Bb2 {[%emt 0:00:04]} Rc8 {[%emt 0:00:08][%cal Of6e4]} 15. Rac1 {[%emt 0:00:57]} Ne4 {[%emt 0:01:46]} 16. f4 {[%emt 0:02:10]} Bxc3 {[%emt 0:01:30]} 17. Bxc3 {[%emt 0:00:00]} Bf5 {[%emt 0:00:29]} 18. Qd4 {[%emt 0:00:23][%csl Gc3,LRa7,LRg7][%cal Rd4g7]} Nxc3 {[%emt 0:00:29]} 19. Rxc3 {[%emt 0:00:00]} Rxc3 {[%emt 0:00:07]} 20. Qxc3 {[%emt 0:00:00]} Qb6 {[%emt 0:00:20]} 21. Rc1 {[%emt 0:03:40]} h6 {[%emt 0:00:34]} 22. Qe5 {[%emt 0:00:27]} Bd7 {[%emt 0:00:26] Hoping for ...Re8.} 23. Rc3 {[%emt 0:01:24]} Bc6 {[%emt 0:01:24]} 24. Kf2 {[%emt 0:00:57]} Re8 {[%emt 0:00:23]} 25. Qd6 {[%emt 0:00:09]} Rd8 {[%emt 0:00:40]} 26. Qc5 {[%emt 0:01:40]} Qxc5 {[%emt 0:00:48]} 27. Rxc5 $11 {[%emt 0:00:08][%mdl 4096] Endgame KRB-KRB} d4 {[%emt 0:00:01]} 28. Bf3 {[%emt 0:00:58]} dxe3+ {[%emt 0:00:07]} 29. Kxe3 {[%emt 0:00:01]} Bxf3 {[%emt 0:00:10]} 30. gxf3 {[%emt 0:00:10] KR-KR} Kf8 {[%emt 0:01:21]} 31. Ra5 {[%emt 0:02:16]} a6 {[%emt 0:00:07]} 32. Rc5 {[%emt 0:00:06]} Ke7 {[%emt 0:00:10]} 33. a4 {[%emt 0:00:01]} Rd6 {[%emt 0:00:37]} 34. Rc7+ {[%emt 0:00:03]} Rd7 {[%emt 0:00:01]} 35. Rc4 {[%emt 0:00:01]} Rd1 {[%emt 0:00:39]} 36. Rb4 {[%emt 0:01:38]} Rd7 {[%emt 0:00:02]} 37. f5 {[%emt 0:00:13]} Rc7 {[%emt 0:00:19]} 38. Kf4 {[%emt 0:00:05]} Rd7 {[%emt 0:00:06]} 39. Ke5 {[%emt 0:00:05]} f6+ {[%emt 0:00:50]} 40. Kf4 {[%emt 0:00:12]} Kf7 {[%emt 0:00:12]} 41. Kg4 {[%emt 0:00:07]} Rc7 {[%emt 0:00:05]} 42. Kh5 {[%emt 0:00:19]} Rd7 {[%emt 0:00:21]} 43. Rb6 {[%emt 0:00:05]} Rc7 {[%emt 0:00:28]} 44. h3 {[%emt 0:00:02]} Rd7 {[%emt 0:00:02]} 45. b4 {[%emt 0:00:08]} Rc7 {[%emt 0:00:35]} 46. Rd6 {[%emt 0:00:13]} Re7 $1 {[%emt 0:00:15]} 47. f4 {[%emt 0:00:27]} Rc7 {[%emt 0:00:45]} 48. Rd4 {[%emt 0:00:37]} Re7 {[%emt 0:02:22]} (48... Rc3 $11) 49. Rc4 {[%emt 0:00:08]} ({Better is} 49. b5 $1 $14) 49... b5 {[%emt 0:00:33]} (49... Re3 $11) 50. axb5 $14 {[%emt 0:00:11]} axb5 {[%emt 0:00:01]} 51. Rc5 {[%emt 0:00:02]} Re3 {[%emt 0:00:39]} 52. h4 {[%emt 0:00:20]} (52. Kg4 $1 $14) 52... Kg8 {[%emt 0:00:20]} (52... Re4 $11 {keeps the balance.}) 53. Kg4 {[%emt 0:00:29]} (53. Rxb5 $16 {aiming for Rb8+.} Rf3 54. Kg4) 53... Rb3 {[%emt 0:00:07]} (53... Re4 $11 {remains equal.}) 54. Rxb5 $16 {[%emt 0:00:03]} Kf7 {[%emt 0:00:04]} (54... Rb2 $16 {was necessary.} 55. Rb8+ Kf7) 55. Rb7+ {[%emt 0:00:23]} Kg8 {[%emt 0:00:11]} 56. Rb8+ {[%emt 0:00:18]} Kf7 {[%emt 0:00:02]} 57. b5 {[%emt 0:00:33] Black must now prevent Kh5.} Ke7 $2 {[%emt 0:00:04][%mdl 8192]} (57... Rb4 $16 58. Rb7+ Kg8) 58. Kh5 {[%emt 0:00:18]} Kf7 {[%emt 0:00:02]} 59. b6 {[%emt 0:00:23]} Rb1 {[%emt 0:00:09]} 60. Rc8 {[%emt 0:00:21]} Rxb6 {[%emt 0:00:17]} 61. Rc7+ {[%emt 0:00:01]} Kf8 {[%emt 0:00:04]} 62. Kg6 {[%emt 0:00:00]} Rb4 {[%emt 0:00:06]} 63. Rf7+ $1 {[%emt 0:00:51]} Ke8 {[%emt 0:00:02]} 64. h5 $2 {[%emt 0:00:15]} (64. Rxg7 {Threatens to win with Rh7.} Rxf4 65. h5 (65. Kxh6 Kf8 $11) (65. Kxf6 h5 $18)) 64... Rxf4 $18 {[%emt 0:00:02] ( -> ...Rg4+)} 65. Rxg7 {[%emt 0:00:01] And now Rh7 would win.} Kf8 {[%emt 0:00:21]} 66. Ra7 {[%emt 0:00:05]} ({Not} 66. Kxh6 Rxf5 67. Rh7 Rg5 $11) 66... Rb4 {[%emt 0:00:04]} 67. Ra6 {[%emt 0:00:22]} ({And not} 67. Kxf6 Rb6+ 68. Ke5 Rb5+ 69. Kf6 Rb6+ 70. Ke5 Rb5+ 71. Ke6 Rb6+ 72. Ke5 $11) ({Less strong is} 67. Kxh6 Kg8 68. Ra8+ Kf7 $18) 67... Rg4+ {[%emt 0:00:42]} 68. Kxf6 {[%emt 0:00:08][%cal Ra6a8]} Kg8 {[%emt 0:00:03]} 69. Ke7 {[%emt 0:00:09] Rg6+ would kill now.} Re4+ $2 {[%emt 0:00:03]} (69... Rg7+ $18 70. Ke6 Rb7 71. Ra8+ Kh7) 70. Re6 {[%emt 0:00:05]} Ra4 {[%emt 0:00:02]} 71. Rxh6 $2 {[%emt 0:00:12]} (71. Rg6+ Kh7 72. Rd6 Kg8 73. Rd8+ Kh7 74. f6 Ra7+ 75. Rd7 Ra8 76. Kf7) 71... Ra7+ $16 {[%emt 0:00:17]} 72. Kf6 {[%emt 0:00:02]} (72. Kd8 $11) 72... Ra6+ $2 {[%emt 0:00:38][%mdl 8192] Black is on the road to losing.} (72... Ra2 $16 73. Rg6+ Kh7) 73. Kg5 {[%emt 0:00:01]} Ra1 {[%emt 0:00:01]} 74. Rb6 {[%emt 0:00:03]} Rg1+ {[%emt 0:00:04]} 75. Kf6 $1 {[%emt 0:00:02]} Rh1 {[%emt 0:00:09]} 76. Rb7 {[%emt 0:00:09]} Rh2 {[%emt 0:00:06]} 77. Rg7+ {[%emt 0:00:09]} Kh8 {[%emt 0:00:10]} 78. Rg5 {[%emt 0:00:03]} Kh7 {[%emt 0:00:07]} 79. Rg7+ $2 {[%emt 0:00:33]} (79. Rg3 Rf2 80. Re3 Kh6 81. Ke6 Kg7 82. h6+ Kxh6 83. f6 Rf1 84. f7) 79... Kh6 $2 {[%emt 0:00:30][%mdl 8192]} (79... Kh8 $11) 80. Rg8 {[%emt 0:00:18][%cal Rg8h8]} Kh7 {[%emt 0:00:05]} 81. Re8 {[%emt 0:00:06]} Rxh5 {[%emt 0:00:13]} 82. Ke6 {[%emt 0:00:18]} Rh1 {[%emt 0:00:04] [#]} 83. f6 $1 {[%emt 0:00:01][%cal Bf5f6,Bf6f7][%mdl 32]} Re1+ {[%emt 0:00:04] [#]} 84. Kd7 $2 {[%emt 0:00:18]} (84. Kf7 $1 {mates} Ra1 85. Kf8 Kg6 86. f7 Ra7 87. Re6+ Kf5 88. Rb6 Ke4 89. Rc6) 84... Rd1+ $2 {[%emt 0:00:07][%mdl 8192]} (84... Rf1 $11) 85. Ke7 {[%emt 0:00:01] White mates.} Re1+ {[%emt 0:00:01]} 86. Kf8 {[%emt 0:00:01]} Rf1 {[%emt 0:00:38]} 87. f7 {[%emt 0:00:06]} Ra1 {[%emt 0:00:12]} 88. Ke7 {[%emt 0:00:03] Weighted Error Value: White=0.09 (flawless) /Black=0.28 (precise)} 1-0